[Event "9th Bangabandhu Blitz Women 2021"]
[Site "Dhaka"]
[Date "2021.04.03"]
[Round "5.4"]
[White "Israt, Jahan Diba"]
[Black "Hamid, Rani"]
[Result "1-0"]
[ECO "B43"]
[WhiteElo "1675"]
[BlackElo "1920"]
[Annotator "NA"]
[PlyCount "61"]
[EventDate "2021.04.02"]
[EventType "swiss"]
[EventCountry "BAN"]
[SourceTitle "playchess.com"]
[Source "ChessBase"]
[SourceQuality "1"]
[TimeControl "1500+10"]

1. e4 {[%emt 0:25:10]} c5 {[%emt 0:25:10]} 2. Nf3 {[%emt 0:00:10]} e6 {[%emt 0:00:10]} 3. d4 {[%emt 0:00:10]} cxd4 {[%emt 0:00:10]} 4. Nxd4 {[%emt 0:00:10]} a6 5. Nc3 {[%emt 0:00:10]} Qc7 {[%emt 0:00:20]} 6. Be3 {[%emt 0:00:10]} Nf6 {[%emt 0:00:10]} 7. Be2 {[%emt 0:00:10]} Bb4 {[%emt 0:00:10]} 8. Qd3 {[%emt 0:00:10]} d5 {[%emt 0:00:10]} 9. exd5 {[%emt 0:00:10]} Nxd5 {[%emt 0:00:10]} 10. Bd2 {[%emt 0:00:10]} Bxc3 {[%emt 0:00:10]} 11. Bxc3 {[%emt 0:00:10]} Nf4 {[%emt 0:00:10]} 12. Qf3 {[%emt 0:00:10]} Nxe2 {[%emt 0:00:10]} 13. Nxe2 {[%emt 0:00:10]} O-O {[%emt 0:00:10]} 14. O-O {[%emt 0:00:10]} Nc6 {[%emt 0:00:10]} 15. Qg4 {[%emt 0:00:10]} f5 {[%emt 0:00:10]} 16. Qf3 {[%emt 0:00:10]} Bd7 {[%emt 0:00:10]} 17. Nf4 {[%emt 0:00:10]} b5 {[%emt 0:00:10]} 18. Qg3 {[%emt 0:00:10]} Rf7 {[%emt 0:00:10]} 19. Rfe1 {[%emt 0:00:10]} Re8 {[%emt 0:00:10]} 20. Rad1 {[%emt 0:00:10]} Bc8 {[%emt 0:00:10]} 21. Qg5 {[%emt 0:00:10]} b4 {[%emt 0:00:10]} 22. Bd2 {[%emt 0:00:10]} a5 {[%emt 0:00:10]} 23. Nh5 {[%emt 0:00:10]} Ref8 {[%emt 0:00:10]} 24. Bf4 {[%emt 0:00:10]} e5 {[%emt 0:00:10]} 25. Be3 {[%emt 0:00:10]} Nd4 {[%emt 0:00:10]} 26. Bxd4 {[%emt 0:00:10]} exd4 27. Rxd4 {[%emt 0:00:10]} Qxc2 {[%emt 0:00:20]} 28. Rd2 {[%emt 0:00:10]} Qc6 {[%emt 0:00:10]} 29. Rd8 {[%emt 0:00:10]} Bb7 {[%emt 0:00:10]} 30. Rxf8+ {[%emt 0:00:10]} Rxf8 {[%emt 0:00:10]} 31. Qxg7# {[%emt 0:00:10]} 1-0

[Event "9th Bangabandhu Blitz Women 2021"]
[Site "Dhaka"]
[Date "2021.04.03"]
[Round "7.1"]
[White "Sultana, Sharmin Shirin"]
[Black "Ahmed, Walijah"]
[Result "1-0"]
[ECO "D02"]
[WhiteElo "2006"]
[BlackElo "1902"]
[Annotator "ChessBase"]
[PlyCount "39"]
[EventDate "2021.04.02"]
[EventType "swiss"]
[EventCountry "BAN"]
[SourceTitle "playchess.com"]
[Source "ChessBase"]
[SourceQuality "1"]
[TimeControl "1500+10"]

1. d4 {[%emt 0:22:09]} d5 {[%emt 0:22:07]} 2. Nf3 {[%emt 0:00:10]} e6 {[%emt 0:00:09]} 3. Bf4 {[%emt 0:00:10]} Nf6 {[%emt 0:00:10]} 4. e3 {[%emt 0:00:09]} Bd6 {[%emt 0:00:09]} 5. Bg3 {[%emt 0:00:11]} O-O {[%emt 0:00:10]} 6. Bd3 {[%emt 0:00:09]} c5 {[%emt 0:00:09]} 7. c3 {[%emt 0:00:10]} Qc7 {[%emt 0:00:09]} 8. Nbd2 {[%emt 0:00:18]} Nc6 {[%emt 0:00:17]} 9. dxc5 {[%emt 0:00:19]} Bxg3 {[%emt 0:00:11]} 10. hxg3 {[%emt 0:00:09]} e5 {[%emt 0:00:10]} 11. e4 {[%emt 0:00:21]} g6 {[%emt 0:00:30]} 12. Qc2 {[%emt 0:00:27]} Qe7 {[%emt 0:00:24]} 13. O-O-O {[%emt 0:00:34]} Qxc5 {[%emt 0:00:21]} 14. exd5 {[%emt 0:00:17]} Nxd5 {[%emt 0:00:17]} 15. Ne4 {[%emt 0:00:15]} Qa5 {[%emt 0:00:34]} 16. Bc4 {[%emt 0:00:11]} Nb6 {[%emt 0:00:34]} 17. Bb3 {[%emt 0:00:20]} Kg7 {[%emt 0:00:17]} 18. Qd2 {[%emt 0:00:14]} h5 {[%emt 0:00:25]} 19. Rxh5 {[%emt 0:00:22]} f5 {[%emt 0:00:56]} 20. Qh6# {[%emt 0:00:12]} 1-0

[Event "9th Bangabandhu Blitz Women 2021"]
[Site "Dhaka"]
[Date "2021.04.03"]
[Round "7.2"]
[White "Parveen, Tanima"]
[Black "Israt, Jahan Diba"]
[Result "1-0"]
[ECO "B22"]
[WhiteElo "1984"]
[BlackElo "1675"]
[Annotator "ChessBase"]
[PlyCount "112"]
[EventDate "2021.04.02"]
[EventType "swiss"]
[EventCountry "BAN"]
[SourceTitle "playchess.com"]
[Source "ChessBase"]
[SourceQuality "1"]
[TimeControl "1500+10"]

1. e4 {[%emt 0:22:06]} c5 {[%emt 0:22:07]} 2. c3 {[%emt 0:00:09]} d6 {[%emt 0:00:10]} 3. d4 {[%emt 0:00:10]} cxd4 {[%emt 0:00:10]} 4. cxd4 {[%emt 0:00:09]} Nf6 {[%emt 0:00:09]} 5. Bd3 {[%emt 0:00:11]} e6 {[%emt 0:00:09]} 6. Nf3 {[%emt 0:00:10]} Be7 {[%emt 0:00:09]} 7. O-O {[%emt 0:00:10]} Nc6 {[%emt 0:00:08]} 8. a3 {[%emt 0:00:10]} O-O {[%emt 0:00:13]} 9. Nc3 {[%emt 0:00:09]} a6 {[%emt 0:00:11]} 10. h3 {[%emt 0:00:10]} b5 {[%emt 0:00:09]} 11. Re1 {[%emt 0:00:14]} Bb7 {[%emt 0:00:11]} 12. Be3 {[%emt 0:00:38]} Rc8 {[%emt 0:00:18]} 13. Rc1 {[%emt 0:00:09]} Qd7 {[%emt 0:00:14]} 14. b4 {[%emt 0:00:11]} Rfd8 {[%emt 0:00:27]} 15. Bb1 {[%emt 0:00:16]} Bf8 {[%emt 0:00:25]} 16. Bg5 {[%emt 0:00:20]} Be7 {[%emt 0:00:12]} 17. Qe2 {[%emt 0:00:12]} h6 {[%emt 0:00:10]} 18. Be3 {[%emt 0:00:12]} Qe8 {[%emt 0:00:23]} 19. Red1 {[%emt 0:00:13]} a5 {[%emt 0:00:28]} 20. bxa5 {[%emt 0:00:18]} Nxa5 {[%emt 0:00:11]} 21. Qxb5 {[%emt 0:00:10]} Qxb5 {[%emt 0:00:16]} 22. Nxb5 {[%emt 0:00:10]} Bxe4 {[%emt 0:00:16]} 23. Bd2 {[%emt 0:00:40]} Nb3 {[%emt 0:00:16]} 24. Rxc8 {[%emt 0:00:18]} Rxc8 {[%emt 0:00:09]} 25. Bb4 {[%emt 0:00:14]} Bxf3 {[%emt 0:00:38]} 26. gxf3 {[%emt 0:00:10]} Ne8 {[%emt 0:00:24]} 27. Ba2 {[%emt 0:00:20]} Nc1 {[%emt 0:00:28]} 28. Bb1 {[%emt 0:00:11]} Ne2+ {[%emt 0:00:11]} 29. Kh2 {[%emt 0:00:16]} Nf4 {[%emt 0:00:15]} 30. Kg3 {[%emt 0:00:11]} Nd5 {[%emt 0:00:11]} 31. Bd2 {[%emt 0:00:15]} Rb8 {[%emt 0:00:12]} 32. Bd3 {[%emt 0:00:12]} Nec7 {[%emt 0:00:17]} 33. a4 {[%emt 0:00:09]} Ra8 {[%emt 0:00:09]} 34. a5 {[%emt 0:00:14]} Nxb5 {[%emt 0:00:11]} 35. Bxb5 {[%emt 0:00:09]} Nc7 {[%emt 0:00:09]} 36. Bc6 {[%emt 0:00:14]} Ra7 {[%emt 0:00:13]} 37. Rb1 {[%emt 0:00:10]} Kh7 {[%emt 0:00:16]} 38. Rb7 {[%emt 0:00:13]} Rxb7 {[%emt 0:00:10]} 39. Bxb7 {[%emt 0:00:09]} Nb5 {[%emt 0:00:12]} 40. Be3 {[%emt 0:00:13]} Bd8 {[%emt 0:00:09]} 41. Bc6 {[%emt 0:00:13]} Na7 {[%emt 0:00:09]} 42. Be4+ {[%emt 0:00:12]} f5 {[%emt 0:00:15]} 43. Bd3 Bxa5 {[%emt 0:00:10]} 44. d5 {[%emt 0:01:00]} Nc8 45. dxe6 {[%emt 0:00:10]} Kg6 {[%emt 0:00:20]} 46. Ba6 {[%emt 0:00:10]} Ne7 {[%emt 0:00:10]} 47. Bd4 {[%emt 0:00:00]} Bc7 {[%emt 0:00:05]} 48. f4 {[%emt 0:00:00]} Nd5 {[%emt 0:00:10]} 49. Bb7 {[%emt 0:00:00]} Ne7 {[%emt 0:00:10]} 50. f3 {[%emt 0:00:00]} Kh7 {[%emt 0:00:11]} 51. Kf2 {[%emt 0:00:00]} d5 {[%emt 0:00:09]} 52. Ke3 {[%emt 0:00:00]} Ng6 {[%emt 0:00:09]} 53. Bxd5 {[%emt 0:00:00]} Bxf4+ {[%emt 0:00:10]} 54. Kd3 {[%emt 0:00:04]} Bd6 {[%emt 0:00:09]} 55. Kc4 {[%emt 0:00:16]} Nf4 {[%emt 0:00:10]} 56. Bc5 {[%emt 0:00:14]} Bxc5 {[%emt 0:00:00]} 1-0

[Event "9th Bangabandhu Blitz Women 2021"]
[Site "Dhaka"]
[Date "2021.04.03"]
[Round "7.3"]
[White "Jannatul, Ferdous"]
[Black "Noshin, Anjum"]
[Result "1-0"]
[ECO "D02"]
[WhiteElo "1710"]
[BlackElo "1912"]
[Annotator "ChessBase"]
[PlyCount "105"]
[EventDate "2021.04.02"]
[EventType "swiss"]
[EventCountry "BAN"]
[SourceTitle "playchess.com"]
[Source "ChessBase"]
[SourceQuality "1"]
[TimeControl "1500+10"]

1. d4 {[%emt 0:25:10]} d5 2. Bf4 {[%emt 0:00:10]} Nf6 {[%emt 0:25:20]} 3. Nf3 {[%emt 0:00:10]} c5 {[%emt 0:00:10]} 4. e3 Nc6 {[%emt 0:00:10]} 5. c3 {[%emt 0:00:20]} Qb6 {[%emt 0:00:10]} 6. Qc1 {[%emt 0:00:10]} Bf5 {[%emt 0:00:10]} 7. Nbd2 {[%emt 0:00:10]} e6 8. h3 h6 {[%emt 0:00:20]} 9. Be2 {[%emt 0:00:20]} Be7 {[%emt 0:00:10]} 10. O-O {[%emt 0:00:10]} O-O {[%emt 0:00:10]} 11. Ne5 {[%emt 0:00:10]} Nxe5 {[%emt 0:00:10]} 12. dxe5 {[%emt 0:00:10]} Ne4 {[%emt 0:00:10]} 13. f3 {[%emt 0:00:10]} Nxd2 {[%emt 0:00:10]} 14. Qxd2 {[%emt 0:00:10]} Bh7 {[%emt 0:00:10]} 15. Bg3 {[%emt 0:00:10]} c4 {[%emt 0:00:10]} 16. Bf2 {[%emt 0:00:10]} Bc5 {[%emt 0:00:10]} 17. Rfe1 {[%emt 0:00:10]} Qc7 {[%emt 0:00:10]} 18. f4 {[%emt 0:00:10]} Be4 {[%emt 0:00:10]} 19. Bd1 {[%emt 0:00:10]} b5 {[%emt 0:00:10]} 20. Bc2 {[%emt 0:00:10]} Bxc2 {[%emt 0:00:10]} 21. Qxc2 {[%emt 0:00:10]} a5 {[%emt 0:00:10]} 22. a3 {[%emt 0:00:10]} b4 {[%emt 0:00:10]} 23. cxb4 {[%emt 0:00:10]} axb4 24. axb4 {[%emt 0:00:10]} Bxb4 {[%emt 0:00:20]} 25. Red1 {[%emt 0:00:10]} Rfb8 {[%emt 0:00:10]} 26. e4 {[%emt 0:00:10]} dxe4 {[%emt 0:00:10]} 27. Qxe4 {[%emt 0:00:10]} Rxa1 {[%emt 0:00:10]} 28. Rxa1 {[%emt 0:00:10]} Bc5 {[%emt 0:00:10]} 29. Qc2 {[%emt 0:00:10]} Bxf2+ {[%emt 0:00:10]} 30. Kxf2 {[%emt 0:00:10]} Qb6+ {[%emt 0:00:10]} 31. Kf1 {[%emt 0:00:10]} Qxb2 {[%emt 0:00:10]} 32. Qxb2 {[%emt 0:00:10]} Rxb2 33. Rc1 {[%emt 0:00:10]} Rb4 {[%emt 0:00:20]} 34. Rc3 {[%emt 0:00:10]} Kf8 {[%emt 0:00:10]} 35. Kf2 {[%emt 0:00:10]} Ke7 {[%emt 0:00:10]} 36. g4 {[%emt 0:00:10]} Kd7 {[%emt 0:00:10]} 37. Ke3 {[%emt 0:00:10]} Rb3 {[%emt 0:00:10]} 38. Kd4 {[%emt 0:00:10]} Rb1 {[%emt 0:00:10]} 39. Rxc4 Rd1+ {[%emt 0:00:10]} 40. Ke4 {[%emt 0:00:20]} Rh1 {[%emt 0:00:10]} 41. Rc3 f5+ {[%emt 0:00:10]} 42. gxf5 {[%emt 0:00:20]} Re1+ {[%emt 0:00:10]} 43. Kd4 {[%emt 0:00:10]} exf5 {[%emt 0:00:10]} 44. Kd5 {[%emt 0:00:10]} Rd1+ {[%emt 0:00:10]} 45. Kc4 {[%emt 0:00:10]} Rf1 {[%emt 0:00:10]} 46. Kd5 {[%emt 0:00:10]} Rxf4 {[%emt 0:00:10]} 47. e6+ Ke7 {[%emt 0:00:10]} 48. Rc7+ {[%emt 0:00:20]} Ke8 {[%emt 0:00:10]} 49. Rxg7 {[%emt 0:00:10]} Rf3 {[%emt 0:00:10]} 50. Kd6 {[%emt 0:00:10]} Rd3+ {[%emt 0:00:10]} 51. Ke5 Rxh3 52. Kf6 {[%emt 0:00:20]} Re3 {[%emt 0:00:20]} 53. Rg8# {[%emt 0:00:10]} 1-0

[Event "9th Bangabandhu Blitz Women 2021"]
[Site "Dhaka"]
[Date "2021.04.03"]
[Round "7.4"]
[White "Talukder, Umme Taslima Protiva"]
[Black "Wadifa, Ahmed"]
[Result "1-0"]
[ECO "E61"]
[WhiteElo "1722"]
[BlackElo "1595"]
[Annotator "NA"]
[PlyCount "64"]
[EventDate "2021.04.02"]
[EventType "swiss"]
[EventCountry "BAN"]
[SourceTitle "playchess.com"]
[Source "ChessBase"]
[SourceQuality "1"]
[TimeControl "1500+10"]

1. d4 {[%emt 0:25:10]} Nf6 2. c4 {[%emt 0:00:10]} g6 {[%emt 0:25:20]} 3. Nc3 {[%emt 0:00:10]} Bg7 4. e3 {[%emt 0:00:10]} O-O {[%emt 0:00:20]} 5. Nf3 {[%emt 0:00:10]} d6 {[%emt 0:00:10]} 6. Be2 {[%emt 0:00:10]} c5 {[%emt 0:00:10]} 7. O-O {[%emt 0:00:10]} Nc6 {[%emt 0:00:10]} 8. b3 {[%emt 0:00:10]} b6 {[%emt 0:00:10]} 9. Bb2 {[%emt 0:00:10]} Bb7 {[%emt 0:00:10]} 10. d5 {[%emt 0:00:10]} Nb4 {[%emt 0:00:10]} 11. a3 {[%emt 0:00:10]} Na6 12. Rc1 {[%emt 0:00:10]} Nc7 {[%emt 0:00:20]} 13. Qc2 {[%emt 0:00:10]} e6 {[%emt 0:00:10]} 14. dxe6 {[%emt 0:00:10]} Nxe6 {[%emt 0:00:10]} 15. Rcd1 {[%emt 0:00:10]} Qe7 {[%emt 0:00:10]} 16. Rd2 {[%emt 0:00:10]} Rfd8 {[%emt 0:00:10]} 17. Rfd1 {[%emt 0:00:10]} Rd7 18. h3 {[%emt 0:00:10]} a6 {[%emt 0:00:20]} 19. Nh2 {[%emt 0:00:10]} Rad8 {[%emt 0:00:10]} 20. Ng4 {[%emt 0:00:10]} Nxg4 {[%emt 0:00:10]} 21. Bxg4 {[%emt 0:00:10]} h5 {[%emt 0:00:10]} 22. Be2 {[%emt 0:00:10]} Nc7 {[%emt 0:00:10]} 23. e4 {[%emt 0:00:10]} Ne6 {[%emt 0:00:10]} 24. Nd5 {[%emt 0:00:10]} Bxb2 {[%emt 0:00:10]} 25. Nxe7+ {[%emt 0:00:10]} Rxe7 {[%emt 0:00:10]} 26. Qxb2 {[%emt 0:00:10]} Nd4 {[%emt 0:00:10]} 27. f3 {[%emt 0:00:10]} a5 {[%emt 0:00:10]} 28. Bf1 {[%emt 0:00:10]} Re5 {[%emt 0:00:10]} 29. b4 {[%emt 0:00:10]} Rg5 {[%emt 0:00:10]} 30. Kh1 {[%emt 0:00:10]} Re5 {[%emt 0:00:10]} 31. bxc5 {[%emt 0:00:10]} dxc5 {[%emt 0:00:10]} 32. Qxb6 {[%emt 0:00:10]} Bc6 {[%emt 0:00:10]} 1-0

[Event "9th Bangabandhu Blitz Women 2021"]
[Site "Dhaka"]
[Date "2021.04.03"]
[Round "8.2"]
[White "Jannatul, Ferdous"]
[Black "Parveen, Tanima"]
[Result "1/2-1/2"]
[ECO "D02"]
[WhiteElo "1710"]
[BlackElo "1984"]
[Annotator "NA"]
[PlyCount "71"]
[EventDate "2021.04.02"]
[EventType "swiss"]
[EventCountry "BAN"]
[SourceTitle "playchess.com"]
[Source "ChessBase"]
[SourceQuality "1"]
[TimeControl "1500+10"]

1. d4 {[%emt 0:22:08]} d5 {[%emt 0:22:07]} 2. Bf4 {[%emt 0:00:09]} Nf6 {[%emt 0:00:10]} 3. e3 {[%emt 0:00:09]} e6 {[%emt 0:00:09]} 4. Nf3 {[%emt 0:00:09]} c6 {[%emt 0:00:13]} 5. c3 {[%emt 0:00:10]} Be7 {[%emt 0:00:14]} 6. Bd3 {[%emt 0:00:09]} O-O {[%emt 0:00:10]} 7. O-O {[%emt 0:00:09]} Nbd7 {[%emt 0:00:09]} 8. Nbd2 {[%emt 0:00:11]} b6 {[%emt 0:00:15]} 9. Qe2 {[%emt 0:00:09]} Bb7 {[%emt 0:00:10]} 10. e4 {[%emt 0:00:12]} dxe4 {[%emt 0:00:20]} 11. Nxe4 {[%emt 0:00:10]} Nd5 {[%emt 0:00:11]} 12. Bg3 {[%emt 0:00:16]} N7f6 {[%emt 0:00:31]} 13. Rfe1 {[%emt 0:00:14]} Nxe4 {[%emt 0:00:50]} 14. Bxe4 {[%emt 0:00:17]} Nf6 {[%emt 0:00:11]} 15. Bc2 {[%emt 0:00:11]} c5 {[%emt 0:00:10]} 16. Rad1 {[%emt 0:00:15]} Qc8 {[%emt 0:00:23]} 17. h3 {[%emt 0:00:24]} Qc6 {[%emt 0:00:12]} 18. Be5 {[%emt 0:00:24]} Rad8 {[%emt 0:00:22]} 19. dxc5 {[%emt 0:00:27]} Qxc5 {[%emt 0:00:21]} 20. Bxf6 {[%emt 0:00:30]} Bxf6 {[%emt 0:00:10]} 21. Be4 {[%emt 0:00:09]} Bxe4 {[%emt 0:00:31]} 22. Qxe4 {[%emt 0:00:09]} g6 {[%emt 0:00:12]} 23. Qe2 {[%emt 0:00:47]} Qa5 {[%emt 0:00:11]} 24. a3 {[%emt 0:00:10]} Qh5 {[%emt 0:00:14]} 25. Rxd8 {[%emt 0:00:12]} Rxd8 {[%emt 0:00:09]} 26. Rd1 {[%emt 0:00:09]} Rd5 {[%emt 0:00:10]} 27. Rxd5 {[%emt 0:00:16]} Qxd5 {[%emt 0:00:09]} 28. Qd2 {[%emt 0:00:09]} Qb5 {[%emt 0:00:11]} 29. Ne1 {[%emt 0:00:29]} e5 {[%emt 0:00:10]} 30. Nf3 {[%emt 0:00:13]} e4 {[%emt 0:00:09]} 31. Nd4 {[%emt 0:00:15]} Qd5 {[%emt 0:00:14]} 32. Nf3 {[%emt 0:00:23]} Qe6 {[%emt 0:00:16]} 33. Nd4 {[%emt 0:00:09]} Qd6 {[%emt 0:00:15]} 34. Nf3 {[%emt 0:00:12]} Qe6 {[%emt 0:00:09]} 35. Nd4 {[%emt 0:00:10]} Qd6 {[%emt 0:00:11]} 36. Nf3 {[%emt 0:00:10]} 1/2-1/2

[Event "9th Bangabandhu Blitz Women 2021"]
[Site "Dhaka"]
[Date "2021.04.03"]
[Round "8.3"]
[White "Talukder, Umme Taslima Protiva"]
[Black "Noshin, Anjum"]
[Result "1-0"]
[ECO "D47"]
[WhiteElo "1722"]
[BlackElo "1912"]
[Annotator "NA"]
[PlyCount "63"]
[EventDate "2021.04.02"]
[EventType "swiss"]
[EventCountry "BAN"]
[SourceTitle "playchess.com"]
[Source "ChessBase"]
[SourceQuality "1"]
[TimeControl "1500+10"]

1. d4 {[%emt 0:25:10]} d5 {[%emt 0:25:10]} 2. c4 {[%emt 0:00:10]} c6 {[%emt 0:00:10]} 3. Nc3 {[%emt 0:00:10]} Nf6 {[%emt 0:00:10]} 4. e3 {[%emt 0:00:10]} e6 {[%emt 0:00:10]} 5. Nf3 {[%emt 0:00:10]} Nbd7 {[%emt 0:00:10]} 6. Bd3 {[%emt 0:00:10]} dxc4 {[%emt 0:00:10]} 7. Bxc4 {[%emt 0:00:10]} b5 {[%emt 0:00:10]} 8. Be2 {[%emt 0:00:10]} a6 9. O-O {[%emt 0:00:10]} Be7 {[%emt 0:00:20]} 10. b3 {[%emt 0:00:10]} c5 {[%emt 0:00:10]} 11. Bb2 {[%emt 0:00:10]} cxd4 {[%emt 0:00:10]} 12. Nxd4 {[%emt 0:00:10]} Bb7 13. Bf3 {[%emt 0:00:10]} Qc7 {[%emt 0:00:20]} 14. Rc1 {[%emt 0:00:10]} Qb6 {[%emt 0:00:10]} 15. Bxb7 {[%emt 0:00:10]} Qxb7 {[%emt 0:00:10]} 16. Qf3 Qxf3 {[%emt 0:00:10]} 17. Nxf3 {[%emt 0:00:20]} O-O {[%emt 0:00:10]} 18. Rfd1 {[%emt 0:00:10]} Rfd8 {[%emt 0:00:10]} 19. Ne2 {[%emt 0:00:10]} Nb6 {[%emt 0:00:10]} 20. Ned4 {[%emt 0:00:10]} Rac8 {[%emt 0:00:10]} 21. Rxc8 {[%emt 0:00:10]} Rxc8 22. Rc1 {[%emt 0:00:10]} Rxc1+ {[%emt 0:00:20]} 23. Bxc1 {[%emt 0:00:10]} Nfd5 {[%emt 0:00:10]} 24. Bd2 {[%emt 0:00:10]} Bb4 {[%emt 0:00:10]} 25. Bxb4 {[%emt 0:00:10]} Nxb4 26. a3 {[%emt 0:00:10]} Nd3 {[%emt 0:00:20]} 27. Kf1 {[%emt 0:00:10]} f6 {[%emt 0:00:10]} 28. Nxe6 {[%emt 0:00:10]} Nc1 {[%emt 0:00:10]} 29. Nfd4 {[%emt 0:00:10]} Kf7 {[%emt 0:00:10]} 30. Nc7 Nd7 {[%emt 0:00:10]} 31. Nxa6 {[%emt 0:00:20]} Nc5 {[%emt 0:00:10]} 32. Nxc5 {[%emt 0:00:10]} 1-0

[Event "9th Bangabandhu Blitz Women 2021"]
[Site "Dhaka"]
[Date "2021.04.03"]
[Round "8.4"]
[White "Israt, Jahan Diba"]
[Black "Wadifa, Ahmed"]
[Result "1-0"]
[ECO "B43"]
[WhiteElo "1675"]
[BlackElo "1595"]
[Annotator "NA"]
[PlyCount "83"]
[EventDate "2021.04.02"]
[EventType "swiss"]
[EventCountry "BAN"]
[SourceTitle "playchess.com"]
[Source "ChessBase"]
[SourceQuality "1"]
[TimeControl "1500+10"]

1. e4 {[%emt 0:25:10]} c5 {[%emt 0:25:10]} 2. Nf3 {[%emt 0:00:10]} e6 {[%emt 0:00:10]} 3. d4 {[%emt 0:00:10]} cxd4 {[%emt 0:00:10]} 4. Nxd4 {[%emt 0:00:10]} a6 5. Nc3 {[%emt 0:00:10]} Qc7 6. Be3 {[%emt 0:00:10]} Bb4 {[%emt 0:00:30]} 7. Qd3 {[%emt 0:00:10]} Nf6 {[%emt 0:00:10]} 8. f3 {[%emt 0:00:10]} d5 {[%emt 0:00:10]} 9. exd5 {[%emt 0:00:10]} Nxd5 {[%emt 0:00:10]} 10. Bd2 {[%emt 0:00:10]} Nxc3 {[%emt 0:00:10]} 11. Bxc3 {[%emt 0:00:10]} Bxc3+ {[%emt 0:00:10]} 12. bxc3 {[%emt 0:00:10]} O-O {[%emt 0:00:10]} 13. Be2 {[%emt 0:00:10]} Bd7 {[%emt 0:00:10]} 14. O-O {[%emt 0:00:10]} Nc6 {[%emt 0:00:10]} 15. Rab1 {[%emt 0:00:10]} Rac8 {[%emt 0:00:10]} 16. c4 {[%emt 0:00:10]} h6 {[%emt 0:00:10]} 17. f4 {[%emt 0:00:10]} Rfd8 {[%emt 0:00:10]} 18. Nxc6 {[%emt 0:00:10]} Bxc6 {[%emt 0:00:10]} 19. Qg3 {[%emt 0:00:10]} Qa5 {[%emt 0:00:10]} 20. a3 {[%emt 0:00:10]} Kh8 {[%emt 0:00:10]} 21. Bd3 {[%emt 0:00:10]} Qxa3 {[%emt 0:00:10]} 22. Rfe1 {[%emt 0:00:10]} Qd6 {[%emt 0:00:10]} 23. Re3 {[%emt 0:00:10]} Qd7 {[%emt 0:00:10]} 24. Qg4 {[%emt 0:00:10]} f5 {[%emt 0:00:10]} 25. Qh5 Qe7 {[%emt 0:00:10]} 26. Rh3 Be8 {[%emt 0:00:10]} 27. Qf3 {[%emt 0:00:30]} Qf6 {[%emt 0:00:10]} 28. Rg3 {[%emt 0:00:10]} Rd7 {[%emt 0:00:10]} 29. Qf2 Rdc7 {[%emt 0:00:10]} 30. Qf3 {[%emt 0:00:20]} Bc6 {[%emt 0:00:10]} 31. Qf2 {[%emt 0:00:10]} Qc3 {[%emt 0:00:10]} 32. Bxf5 {[%emt 0:00:10]} exf5 {[%emt 0:00:10]} 33. Rxc3 {[%emt 0:00:10]} Bd7 {[%emt 0:00:10]} 34. Qd4 {[%emt 0:00:10]} Bc6 {[%emt 0:00:10]} 35. Qe3 Be4 {[%emt 0:00:10]} 36. Rc1 {[%emt 0:00:20]} Rxc4 37. Rxc4 Rxc4 38. Qb3 {[%emt 0:00:20]} Rc7 {[%emt 0:00:30]} 39. Qb6 {[%emt 0:00:10]} Rd7 {[%emt 0:00:10]} 40. Re1 {[%emt 0:00:10]} Re7 {[%emt 0:00:10]} 41. Qc5 {[%emt 0:00:10]} Rd7 42. Qc8+ {[%emt 0:00:10]} 1-0

[Event "9th Bangabandhu Blitz Women 2021"]
[Site "Dhaka"]
[Date "2021.04.03"]
[Round "9.1"]
[White "Sultana, Sharmin Shirin"]
[Black "Hamid, Rani"]
[Result "1/2-1/2"]
[ECO "D37"]
[WhiteElo "2006"]
[BlackElo "1920"]
[Annotator "ChessBase"]
[PlyCount "41"]
[EventDate "2021.04.02"]
[EventType "swiss"]
[EventCountry "BAN"]
[SourceTitle "playchess.com"]
[Source "ChessBase"]
[SourceQuality "1"]
[TimeControl "180+2"]

1. d4 {[%emt 0:00:00]} d5 {[%emt 0:00:00]} 2. Nf3 {[%emt 0:00:03]} Nf6 {[%emt 0:00:01]} 3. c4 {[%emt 0:00:01]} e6 {[%emt 0:00:01]} 4. Nc3 {[%emt 0:00:02]} Be7 {[%emt 0:00:06]} 5. Bf4 {[%emt 0:00:02]} c6 {[%emt 0:00:04]} 6. e3 {[%emt 0:00:02]} O-O {[%emt 0:00:04]} 7. h3 {[%emt 0:00:05]} b6 {[%emt 0:00:02]} 8. Qc2 {[%emt 0:00:02]} Ba6 {[%emt 0:00:05]} 9. b3 {[%emt 0:00:30]} Nbd7 {[%emt 0:00:06]} 10. Be2 {[%emt 0:00:17]} Rc8 {[%emt 0:00:02]} 11. O-O {[%emt 0:00:06]} c5 {[%emt 0:00:04]} 12. cxd5 {[%emt 0:00:24]} Bxe2 {[%emt 0:00:02]} 13. Qxe2 {[%emt 0:00:09]} exd5 {[%emt 0:00:08]} 14. dxc5 {[%emt 0:00:07]} Nxc5 {[%emt 0:00:04]} 15. Rac1 {[%emt 0:00:20]} Nce4 {[%emt 0:00:13]} 16. Nb5 {[%emt 0:00:13]} a6 {[%emt 0:00:16]} 17. Nbd4 {[%emt 0:00:02]} Nc3 {[%emt 0:00:07]} 18. Qxa6 {[%emt 0:00:05]} Nfe4 {[%emt 0:00:11]} 19. Kh1 {[%emt 0:00:04]} Ra8 {[%emt 0:00:04]} 20. Qb7 {[%emt 0:00:03]} Rxa2 {[%emt 0:00:03]} 21. Bc7 {[%emt 0:00:05]} 1/2-1/2

[Event "9th Bangabandhu Blitz Women 2021"]
[Site "Dhaka"]
[Date "2021.04.03"]
[Round "9.2"]
[White "Parveen, Tanima"]
[Black "Kazi Zarin, Tasnim"]
[Result "1-0"]
[ECO "C42"]
[WhiteElo "1984"]
[BlackElo "1425"]
[Annotator "ChessBase"]
[PlyCount "57"]
[EventDate "2021.04.02"]
[EventType "swiss"]
[EventCountry "BAN"]
[SourceTitle "playchess.com"]
[Source "ChessBase"]
[SourceQuality "1"]
[TimeControl "180+2"]

1. e4 {[%emt 0:00:00]} e5 {[%emt 0:00:00]} 2. Nf3 {[%emt 0:00:00]} Nf6 {[%emt 0:00:00]} 3. Nxe5 {[%emt 0:03:06]} Nc6 4. Nxc6 dxc6 {[%emt 0:00:00]} 5. d3 {[%emt 0:00:00]} Bc5 {[%emt 0:00:02]} 6. Be2 {[%emt 0:00:00]} h5 {[%emt 0:00:01]} 7. c3 {[%emt 0:00:00]} Ng4 {[%emt 0:00:10]} 8. d4 {[%emt 0:00:00]} Be7 {[%emt 0:00:11]} 9. h3 {[%emt 0:00:00]} Nf6 {[%emt 0:00:07]} 10. Bf3 {[%emt 0:00:00]} Be6 {[%emt 0:00:10]} 11. O-O {[%emt 0:00:00]} g6 {[%emt 0:00:57]} 12. Be3 {[%emt 0:00:00]} a5 {[%emt 0:00:12]} 13. Qe2 {[%emt 0:00:00]} b5 {[%emt 0:00:09]} 14. Nd2 {[%emt 0:00:00]} Bd7 {[%emt 0:00:16]} 15. a4 {[%emt 0:00:00]} b4 {[%emt 0:00:09]} 16. Nc4 {[%emt 0:00:00]} O-O {[%emt 0:00:17]} 17. Ne5 {[%emt 0:00:00]} Rb8 {[%emt 0:00:11]} 18. Qc4 {[%emt 0:00:00]} Qe8 {[%emt 0:00:10]} 19. Nxg6 {[%emt 0:00:00]} Be6 {[%emt 0:00:06]} 20. Nxe7+ {[%emt 0:00:00]} Qxe7 {[%emt 0:00:01]} 21. d5 {[%emt 0:00:00]} cxd5 {[%emt 0:00:03]} 22. exd5 {[%emt 0:00:00]} Bf5 {[%emt 0:00:08]} 23. Bc5 {[%emt 0:00:00]} Qd7 {[%emt 0:00:05]} 24. Bxf8 {[%emt 0:00:00]} Rxf8 {[%emt 0:00:01]} 25. Rad1 {[%emt 0:00:00]} Qd6 {[%emt 0:00:07]} 26. Qh4 {[%emt 0:00:00]} Bg6 {[%emt 0:00:06]} 27. Rfe1 {[%emt 0:00:00]} c6 {[%emt 0:00:07]} 28. dxc6 {[%emt 0:00:00]} Qc7 {[%emt 0:00:01]} 29. Qxf6 {[%emt 0:00:00]} 1-0